[Event "Australian-ch 2020"]
[Site "Kogarah"]
[Date "2020.01.04"]
[Round "3.4"]
[White "Solomon, Stephen J"]
[Black "Puccini, Jack"]
[Result "1/2-1/2"]
[ECO "B94"]
[WhiteElo "2319"]
[BlackElo "2265"]
[Annotator "RC"]
[PlyCount "275"]
[EventDate "2020.01.02"]
[EventType "swiss"]
[EventCountry "AUS"]
[SourceTitle "playchess.com"]
[Source "ChessBase"]
[SourceQuality "1"]
[TimeControl "40/5400+30:1800+30"]

1. e4 {[%emt 0:00:36]} c5 {[%emt 0:00:00]} 2. Nf3 {[%emt 0:00:10]} d6 {[%emt 0:00:00]} 3. d4 {[%emt 0:00:30]} cxd4 {[%emt 0:00:00]} 4. Nxd4 {[%emt 0:00:11]} Nf6 {[%emt 0:00:00]} 5. Nc3 {[%emt 0:00:09]} a6 {[%emt 0:00:03]} 6. Bg5 {[%emt 0:01:32]} Nbd7 {[%emt 0:00:11]} 7. Bc4 {[%emt 0:00:16]} Qb6 {[%emt 0:00:08]} 8. Bb3 {[%emt 0:03:01]} e6 {[%emt 0:00:30]} 9. Qd2 {[%emt 0:01:03]} Nc5 {[%emt 0:00:28]} 10. f3 {[%emt 0:01:15]} Qc7 {[%emt 0:02:05]} 11. O-O-O {[%emt 0:00:23]} Be7 {[%emt 0:00:29]} 12. g4 {[%emt 0:04:07]} b5 {[%emt 0:05:36]} 13. a3 {[%emt 0:01:01]} Nxb3+ {[%emt 0:07:16]} 14. cxb3 {[%emt 0:05:34]} O-O {[%emt 0:04:35]} 15. Kb1 {[%emt 0:02:41]} Qb7 {[%emt 0:03:56]} 16. b4 {[%emt 0:13:40]} h6 {[%emt 0:34:59]} 17. h4 {[%emt 0:02:52]} a5 {[%emt 0:02:04]} 18. bxa5 {[%emt 0:06:05]} Rxa5 {[%emt 0:02:44]} 19. Na2 {[%emt 0:24:17]} Ra4 {[%emt 0:04:43]} 20. Nb4 {[%emt 0:01:54]} Rxb4 {[%emt 0:13:59]} 21. axb4 {[%emt 0:08:24]} Nxe4 {[%emt 0:00:33]} 22. fxe4 {[%emt 0:00:27]} Qxe4+ {[%emt 0:00:06]} 23. Qd3 {[%emt 0:05:11]} Qxd3+ {[%emt 0:01:45]} 24. Rxd3 {[%emt 0:01:41]} hxg5 {[%emt 0:00:08]} 25. Nc6 {[%emt 0:01:01]} Re8 {[%emt 0:08:06]} 26. Nxe7+ {[%emt 0:05:46]} Rxe7 {[%emt 0:00:05]} 27. Rxd6 {[%emt 0:06:07]} Bb7 {[%emt 0:00:23]} 28. Rh2 {[%emt 0:00:18]} Rc7 {[%emt 0:04:39]} 29. hxg5 {[%emt 0:01:09]} Kf8 {[%emt 0:03:20]} 30. Rh8+ {[%emt 0:01:19]} Ke7 {[%emt 0:00:05]} 31. Rdd8 {[%emt 0:00:10]} f6 {[%emt 0:01:15]} 32. Rhe8+ {[%emt 0:01:16]} Kf7 {[%emt 0:00:03]} 33. Rf8+ {[%emt 0:00:13]} Ke7 {[%emt 0:01:24]} 34. gxf6+ {[%emt 0:00:40]} gxf6 {[%emt 0:00:07]} 35. Rde8+ {[%emt 0:00:11]} Kd6 {[%emt 0:00:06]} 36. Rxf6 {[%emt 0:00:41]} Be4+ {[%emt 0:00:54]} 37. Ka2 {[%emt 0:00:05]} Bd5+ {[%emt 0:00:31]} 38. b3 {[%emt 0:01:49]} Rc2+ {[%emt 0:00:17]} 39. Kb1 {[%emt 0:00:08]} Rc3 {[%emt 0:00:13]} 40. Rf4 {[%emt 0:00:40]} Ke5 {[%emt 0:01:33]} 41. Ref8 {[%emt 0:30:46]} Be4+ {[%emt 0:04:53]} 42. Kb2 {[%emt 0:00:00]} Rc2+ {[%emt 0:00:05]} 43. Ka3 {[%emt 0:00:00]} Rg2 {[%emt 0:00:06]} 44. Rf2 {[%emt 0:00:00]} Rxg4 {[%emt 0:00:49]} 45. Rb8 {[%emt 0:00:00]} Bd3 {[%emt 0:01:35]} 46. Rd2 {[%emt 0:00:00]} Rg3 {[%emt 0:00:37]} 47. Kb2 {[%emt 0:00:00]} Ke4 {[%emt 0:00:47]} 48. Rd8 {[%emt 0:00:00]} e5 {[%emt 0:02:52]} 49. Rd6 {[%emt 0:00:00]} Rf3 {[%emt 0:02:00]} 50. Kc1 {[%emt 0:00:00]} Rf1+ {[%emt 0:11:01]} 51. Rd1 {[%emt 0:00:00]} Rf3 {[%emt 0:03:21]} 52. Re1+ {[%emt 0:00:00]} Kf4 {[%emt 0:00:14]} 53. Kd2 {[%emt 0:00:00]} Bf5 {[%emt 0:02:21]} 54. Rd5 {[%emt 0:00:00]} Rxb3 {[%emt 0:03:09]} 55. Rexe5 {[%emt 0:01:18]} Be4 {[%emt 0:00:56]} 56. Rxb5 {[%emt 0:03:02]} Rxb4 {[%emt 0:00:05]} 57. Ra5 {[%emt 0:01:08]} Rc4 {[%emt 0:01:18]} 58. Re8 {[%emt 0:00:17]} Rc2+ {[%emt 0:00:38]} 59. Kd1 {[%emt 0:00:19]} Rc4 {[%emt 0:00:38]} 60. Ra3 {[%emt 0:01:59]} Bf3+ {[%emt 0:01:30]} 61. Kd2 {[%emt 0:00:15]} Rd4+ {[%emt 0:00:30]} 62. Kc3 {[%emt 0:00:06]} Re4 {[%emt 0:01:07]} 63. Rf8+ {[%emt 0:00:09]} Kg3 {[%emt 0:00:15]} 64. Kd3 {[%emt 0:01:13]} Rf4 {[%emt 0:00:30]} 65. Rg8+ {[%emt 0:00:13]} Rg4 {[%emt 0:00:12]} 66. Re8 {[%emt 0:00:06]} Rg7 {[%emt 0:00:45]} 67. Ke3 {[%emt 0:00:41]} Rg6 {[%emt 0:01:17]} 68. Rf8 {[%emt 0:00:46]} Re6+ {[%emt 0:00:06]} 69. Kd2 {[%emt 0:01:10]} Re2+ {[%emt 0:00:15]} 70. Kd3 {[%emt 0:00:04]} Re4 {[%emt 0:00:43]} 71. Ra7 {[%emt 0:00:53]} Rg4 {[%emt 0:00:43]} 72. Raf7 {[%emt 0:00:23]} Bg2 {[%emt 0:00:12]} 73. Re7 {[%emt 0:00:19]} Rg5 {[%emt 0:00:33]} 74. Re3+ {[%emt 0:01:36]} Kg4 {[%emt 0:00:26]} 75. Ke2 {[%emt 0:00:20]} Bd5 {[%emt 0:00:08]} 76. Re7 {[%emt 0:01:16]} Rf5 {[%emt 0:00:25]} 77. Rd8 {[%emt 0:00:06]} Kf4 {[%emt 0:00:22]} 78. Kd3 {[%emt 0:00:15]} Bf3 {[%emt 0:00:18]} 79. Kd4 {[%emt 0:00:08]} Rf6 {[%emt 0:00:10]} 80. Kd3 {[%emt 0:00:33]} Rf5 {[%emt 0:00:31]} 81. Rd4+ {[%emt 0:00:04]} Kg5 {[%emt 0:00:05]} 82. Ke3 {[%emt 0:00:22]} Bd5 {[%emt 0:00:12]} 83. Rg7+ {[%emt 0:01:25]} Kf6 {[%emt 0:00:12]} 84. Rd7 {[%emt 0:00:07]} Re5+ {[%emt 0:00:18]} 85. Kd3 {[%emt 0:00:17]} Be6 {[%emt 0:00:10]} 86. R7d6 {[%emt 0:00:39]} Ke7 {[%emt 0:00:20]} 87. Kc3 {[%emt 0:01:23]} Re3+ {[%emt 0:00:21]} 88. Kb4 {[%emt 0:00:36]} Rb3+ {[%emt 0:00:13]} 89. Kc5 {[%emt 0:00:50]} Rc3+ {[%emt 0:00:07]} 90. Kb6 {[%emt 0:00:05]} Rb3+ {[%emt 0:00:18]} 91. Kc7 {[%emt 0:00:09]} Rc3+ {[%emt 0:00:09]} 92. Rc6 {[%emt 0:00:07]} Rxc6+ {[%emt 0:00:17]} 93. Kxc6 {[%emt 0:00:03]} Kf6 {[%emt 0:00:17]} 94. Kd6 {[%emt 0:00:03]} Bb3 {[%emt 0:00:28]} 95. Rf4+ {[%emt 0:00:03]} Kg7 {[%emt 0:00:10]} 96. Ke7 {[%emt 0:00:08]} Ba2 {[%emt 0:00:43]} 97. Rg4+ {[%emt 0:00:07]} Kh8 {[%emt 0:00:10]} 98. Rb4 {[%emt 0:00:40]} Kg7 {[%emt 0:00:37]} 99. Rb2 {[%emt 0:00:20]} Bc4 {[%emt 0:00:21]} 100. Rg2+ {[%emt 0:00:24]} Kh8 {[%emt 0:00:08]} 101. Kf6 {[%emt 0:00:31]} Bd5 {[%emt 0:01:04]} 102. Rg3 {[%emt 0:00:25]} Ba2 {[%emt 0:01:31]} 103. Rg4 {[%emt 0:00:25]} Bg8 {[%emt 0:00:58]} 104. Rb4 {[%emt 0:00:45]} Bh7 {[%emt 0:00:38]} 105. Rh4 {[%emt 0:02:39]} Kg8 {[%emt 0:00:06]} 106. Rh3 {[%emt 0:00:07]} Kh8 {[%emt 0:00:20]} 107. Rg3 {[%emt 0:00:15]} Bg8 {[%emt 0:00:21]} 108. Rg2 {[%emt 0:00:10]} Bh7 {[%emt 0:00:39]} 109. Kf7 {[%emt 0:00:05]} Bd3 {[%emt 0:01:42]} 110. Rg4 {[%emt 0:00:42]} Bh7 {[%emt 0:00:40]} 111. Rg2 {[%emt 0:01:22]} Bd3 {[%emt 0:00:22]} 112. Rg3 {[%emt 0:00:12]} Bh7 {[%emt 0:00:07]} 113. Rg4 {[%emt 0:00:32]} Bd3 {[%emt 0:00:52]} 114. Rb4 {[%emt 0:01:10]} Bc2 {[%emt 0:01:17]} 115. Rb8+ {[%emt 0:01:36]} Kh7 {[%emt 0:00:03]} 116. Rb6 {[%emt 0:00:10]} Kh8 {[%emt 0:00:42]} 117. Rb4 {[%emt 0:00:23]} Bd3 {[%emt 0:00:37]} 118. Ra4 {[%emt 0:00:44]} Bc2 {[%emt 0:00:24]} 119. Ra3 {[%emt 0:00:05]} Be4 {[%emt 0:00:24]} 120. Re3 {[%emt 0:00:37]} Bc2 {[%emt 0:00:19]} 121. Re2 {[%emt 0:00:20]} Bd3 {[%emt 0:00:18]} 122. Rd2 {[%emt 0:00:10]} Be4 {[%emt 0:00:19]} 123. Rd8+ {[%emt 0:00:23]} Kh7 {[%emt 0:00:02]} 124. Rd4 {[%emt 0:00:05]} Bg6+ {[%emt 0:00:11]} 125. Kf6 {[%emt 0:00:02]} Bc2 {[%emt 0:01:03]} 126. Rd2 {[%emt 0:00:06]} Be4 {[%emt 0:00:39]} 127. Rd7+ {[%emt 0:01:28]} Kh8 {[%emt 0:00:31]} 128. Kf7 {[%emt 0:00:17]} Bc2 {[%emt 0:00:21]} 129. Rb7 {[%emt 0:00:34]} Bd3 {[%emt 0:00:16]} 130. Rb4 {[%emt 0:00:30]} Bc2 {[%emt 0:00:18]} 131. Rb8+ {[%emt 0:01:45]} Kh7 {[%emt 0:00:02]} 132. Rb2 {[%emt 0:00:06]} Bg6+ {[%emt 0:00:03]} 133. Kf6 {[%emt 0:00:08]} Bd3 {[%emt 0:00:19]} 134. Rb7+ {[%emt 0:01:02]} Kh8 {[%emt 0:00:14]} 135. Rc7 {[%emt 0:00:03]} Be4 {[%emt 0:00:59]} 136. Rd7 {[%emt 0:00:55]} Bc2 {[%emt 0:00:10]} 137. Rd2 {[%emt 0:00:05]} Bh7 {[%emt 0:00:44]} 138. Rh2 {[%emt 0:02:20]} 1/2-1/2

[Event "Australian-ch 2020"]
[Site "Kogarah"]
[Date "2020.01.04"]
[Round "3.5"]
[White "Zhang, Jilin"]
[Black "Plant, John Stuart"]
[Result "1-0"]
[ECO "C66"]
[WhiteElo "2237"]
[BlackElo "1993"]
[Annotator "ChessBase"]
[PlyCount "131"]
[EventDate "2020.01.02"]
[EventType "swiss"]
[EventCountry "AUS"]
[SourceTitle "playchess.com"]
[Source "ChessBase"]
[SourceQuality "1"]
[TimeControl "40/5400+30:1800+30"]

1. e4 {[%emt 0:00:00]} Nc6 {[%emt 0:00:00]} 2. Nf3 {[%emt 0:00:10]} d6 {[%emt 0:00:00]} 3. d4 {[%emt 0:00:15]} e5 {[%emt 0:00:10]} 4. Bb5 {[%emt 0:01:33]} Bd7 {[%emt 0:00:29]} 5. O-O {[%emt 0:01:29]} Nf6 {[%emt 0:00:46]} 6. Nc3 {[%emt 0:00:53]} Be7 {[%emt 0:01:22]} 7. Re1 {[%emt 0:03:11]} exd4 {[%emt 0:02:20]} 8. Nxd4 {[%emt 0:01:07]} Nxd4 {[%emt 0:01:47]} 9. Qxd4 {[%emt 0:01:30]} Bxb5 {[%emt 0:01:53]} 10. Nxb5 {[%emt 0:00:09]} a6 {[%emt 0:00:09]} 11. Nc3 {[%emt 0:03:37]} O-O {[%emt 0:00:38]} 12. Bg5 {[%emt 0:02:15]} h6 {[%emt 0:03:13]} 13. Bh4 {[%emt 0:01:15]} Nd7 {[%emt 0:11:20]} 14. Bxe7 {[%emt 0:02:13]} Qxe7 {[%emt 0:00:15]} 15. Nd5 {[%emt 0:01:13]} Qd8 {[%emt 0:07:26]} 16. Rad1 {[%emt 0:02:16]} Re8 {[%emt 0:00:57]} 17. Re3 {[%emt 0:03:11]} Re6 {[%emt 0:06:17]} 18. Rc3 {[%emt 0:26:16]} c6 {[%emt 0:08:25]} 19. Nf4 {[%emt 0:02:30]} Rf6 {[%emt 0:02:13]} 20. Nh5 {[%emt 0:02:29]} Rg6 {[%emt 0:00:59]} 21. Rg3 {[%emt 0:00:24]} Rxg3 {[%emt 0:05:44]} 22. hxg3 {[%emt 0:00:13]} Qg5 {[%emt 0:01:01]} 23. Nf4 {[%emt 0:08:36]} Nf6 {[%emt 0:04:53]} 24. Qxd6 {[%emt 0:03:12]} Nxe4 {[%emt 0:00:35]} 25. Qb4 {[%emt 0:00:16]} Nc5 {[%emt 0:04:46]} 26. Nd5 {[%emt 0:04:48]} cxd5 {[%emt 0:05:30]} 27. Qxc5 {[%emt 0:00:06]} Qe5 {[%emt 0:00:17]} 28. Qd4 {[%emt 0:01:52]} Qe4 {[%emt 0:01:57]} 29. Qxe4 {[%emt 0:04:27]} dxe4 {[%emt 0:00:01]} 30. Rd7 {[%emt 0:00:17]} b5 {[%emt 0:00:16]} 31. c3 {[%emt 0:04:53]} g6 {[%emt 0:12:27]} 32. Kf1 {[%emt 0:01:21]} Rc8 {[%emt 0:02:20]} 33. Ke2 {[%emt 0:01:31]} Rc4 {[%emt 0:04:12]} 34. Ke3 {[%emt 0:01:30]} f5 {[%emt 0:06:58]} 35. Rd6 {[%emt 0:01:31]} Ra4 {[%emt 0:00:47]} 36. Rxg6+ {[%emt 0:07:27]} Kh7 {[%emt 0:00:58]} 37. Rf6 {[%emt 0:02:26]} Rxa2 {[%emt 0:00:09]} 38. Rxf5 {[%emt 0:01:11]} Rxb2 {[%emt 0:00:08]} 39. Rf6 {[%emt 0:00:09]} a5 {[%emt 0:00:24]} 40. Ra6 {[%emt 0:01:29]} a4 {[%emt 0:00:09]} 41. c4 {[%emt 0:31:59]} Rb3+ {[%emt 0:31:39]} 42. Kf4 {[%emt 0:00:00]} e3 {[%emt 0:00:00]} 43. fxe3 {[%emt 0:00:00]} Rb4 {[%emt 0:00:00]} 44. e4 Rxc4 45. Kf5 {[%emt 0:00:00]} Rc7 {[%emt 0:00:00]} 46. e5 {[%emt 0:00:00]} Kg7 {[%emt 0:00:00]} 47. Rg6+ {[%emt 0:00:00]} Kh7 {[%emt 0:00:00]} 48. Rb6 {[%emt 0:00:00]} Ra7 {[%emt 0:00:00]} 49. Rxb5 {[%emt 0:00:00]} a3 {[%emt 0:00:00]} 50. Rb1 {[%emt 0:00:00]} a2 {[%emt 0:00:00]} 51. Ra1 {[%emt 0:00:00]} Kg7 {[%emt 0:00:00]} 52. Ke6 {[%emt 0:00:00]} h5 {[%emt 0:00:00]} 53. Kf5 {[%emt 0:00:00]} Ra5 {[%emt 0:02:04]} 54. g4 {[%emt 0:00:00]} h4 {[%emt 0:00:37]} 55. g5 {[%emt 0:00:00]} Kf7 {[%emt 0:00:49]} 56. Kg4 {[%emt 0:00:00]} Ra4+ {[%emt 0:03:32]} 57. Kh5 {[%emt 0:00:00]} Kg8 {[%emt 0:01:32]} 58. Kh6 {[%emt 0:02:54]} Ra6+ {[%emt 0:00:39]} 59. g6 {[%emt 0:01:13]} Ra7 {[%emt 0:01:12]} 60. e6 {[%emt 0:01:16]} Kf8 {[%emt 0:00:53]} 61. Rf1+ {[%emt 0:01:54]} Kg8 {[%emt 0:00:33]} 62. Rd1 {[%emt 0:03:05]} Kf8 {[%emt 0:01:55]} 63. Ra1 {[%emt 0:00:08]} Ra6 {[%emt 0:00:39]} 64. Rf1+ {[%emt 0:02:27]} Ke7 {[%emt 0:00:17]} 65. g7 {[%emt 0:00:18]} Ra8 {[%emt 0:01:14]} 66. Kh7 {[%emt 0:00:24]} 1-0

[Event "Australian-ch 2020"]
[Site "Kogarah"]
[Date "2020.01.04"]
[Round "3.6"]
[White "O`Chee, Kevin"]
[Black "McGowan, Cameron"]
[Result "1-0"]
[ECO "E68"]
[WhiteElo "2156"]
[BlackElo "2221"]
[Annotator "ChessBase"]
[PlyCount "113"]
[EventDate "2020.01.02"]
[EventType "swiss"]
[EventCountry "AUS"]
[SourceTitle "playchess.com"]
[Source "ChessBase"]
[SourceQuality "1"]
[TimeControl "40/5400+30:1800+30"]

1. c4 {[%emt 0:00:00]} Nf6 {[%emt 0:00:00]} 2. Nc3 {[%emt 0:00:00]} g6 {[%emt 0:00:00]} 3. d4 {[%emt 0:00:34]} Bg7 {[%emt 0:00:00]} 4. g3 {[%emt 0:00:12]} O-O {[%emt 0:00:06]} 5. Bg2 {[%emt 0:01:47]} d6 {[%emt 0:00:08]} 6. Nf3 {[%emt 0:00:08]} Nbd7 {[%emt 0:00:05]} 7. O-O {[%emt 0:00:16]} e5 {[%emt 0:00:03]} 8. e4 {[%emt 0:00:14]} exd4 {[%emt 0:00:32]} 9. Nxd4 {[%emt 0:03:08]} Re8 {[%emt 0:00:00]} 10. h3 {[%emt 0:00:53]} a6 {[%emt 0:01:24]} 11. Re1 {[%emt 0:00:50]} Rb8 {[%emt 0:00:37]} 12. a4 {[%emt 0:00:34]} Nc5 {[%emt 0:01:41]} 13. a5 {[%emt 0:03:28]} Nfd7 {[%emt 0:07:24]} 14. Be3 {[%emt 0:03:12]} Ne5 {[%emt 0:03:31]} 15. b3 {[%emt 0:01:21]} Nc6 {[%emt 0:12:50]} 16. Rb1 {[%emt 0:03:31]} f5 {[%emt 0:16:31]} 17. Nxc6 {[%emt 0:09:17]} bxc6 {[%emt 0:00:11]} 18. Qc2 {[%emt 0:00:38]} Nxe4 {[%emt 0:07:44]} 19. Nxe4 {[%emt 0:03:40]} fxe4 {[%emt 0:00:03]} 20. Bxe4 {[%emt 0:03:18]} Bxh3 {[%emt 0:09:32]} 21. Bxc6 {[%emt 0:07:38]} Bf5 {[%emt 0:00:28]} 22. Qd2 {[%emt 0:00:36]} Rf8 {[%emt 0:09:05]} 23. Bg5 {[%emt 0:04:57]} Qc8 {[%emt 0:00:56]} 24. Be4 {[%emt 0:05:05]} Bxe4 {[%emt 0:06:33]} 25. Rxe4 {[%emt 0:00:18]} Qf5 {[%emt 0:00:04]} 26. Ree1 {[%emt 0:03:07]} h6 {[%emt 0:01:38]} 27. Be3 {[%emt 0:01:15]} Qf3 {[%emt 0:00:30]} 28. Qd1 {[%emt 0:02:53]} Bc3 {[%emt 0:03:06]} 29. Qxf3 {[%emt 0:14:06]} Rxf3 {[%emt 0:00:03]} 30. Kg2 {[%emt 0:01:36]} Rf5 {[%emt 0:09:05]} 31. Rec1 {[%emt 0:01:55]} Bxa5 {[%emt 0:00:04]} 32. Bxh6 {[%emt 0:00:45]} Bb6 {[%emt 0:01:57]} 33. f4 {[%emt 0:01:38]} Ra5 {[%emt 0:01:35]} 34. Re1 {[%emt 0:02:18]} Ra2+ {[%emt 0:00:47]} 35. Kf3 {[%emt 0:01:16]} Kf7 {[%emt 0:01:15]} 36. Bg5 {[%emt 0:02:05]} Re8 {[%emt 0:01:04]} 37. Rxe8 {[%emt 0:01:04]} Kxe8 {[%emt 0:00:13]} 38. Re1+ {[%emt 0:00:26]} Kf8 {[%emt 0:00:51]} 39. Re6 {[%emt 0:01:08]} Kf7 {[%emt 0:01:16]} 40. Re7+ {[%emt 0:00:54]} Kf8 {[%emt 0:00:11]} 41. Re6 {[%emt 0:32:17]} Ra3 {[%emt 0:08:18]} 42. Rxg6 {[%emt 0:00:00]} Rxb3+ {[%emt 0:00:03]} 43. Kg4 {[%emt 0:00:00]} a5 {[%emt 0:00:09]} 44. f5 {[%emt 0:00:00]} Bd4 {[%emt 0:01:51]} 45. f6 {[%emt 0:00:00]} Be3 {[%emt 0:05:34]} 46. Kf5 {[%emt 0:00:00]} a4 {[%emt 0:04:10]} 47. g4 {[%emt 0:00:00]} a3 {[%emt 0:08:35]} 48. Bh6+ {[%emt 0:00:00]} Bxh6 {[%emt 0:01:48]} 49. Rxh6 {[%emt 0:00:00]} Kg8 {[%emt 0:01:00]} 50. Kg6 {[%emt 0:00:00]} Rf3 {[%emt 0:00:08]} 51. Rh2 {[%emt 0:00:00]} Rf4 {[%emt 0:00:14]} 52. g5 {[%emt 0:00:00]} Rf3 {[%emt 0:00:49]} 53. Rd2 {[%emt 0:00:00]} Re3 {[%emt 0:02:37]} 54. c5 {[%emt 0:00:00]} Re6 {[%emt 0:00:18]} 55. Rd3 {[%emt 0:00:00]} Kf8 {[%emt 0:03:43]} 56. Rxa3 {[%emt 0:00:00]} Ke8 {[%emt 0:00:05]} 57. c6 {[%emt 0:00:00]} 1-0

[Event "Australian-ch 2020"]
[Site "Kogarah"]
[Date "2020.01.04"]
[Round "3.9"]
[White "Ng, Clive"]
[Black "Kethro, Michael"]
[Result "0-1"]
[ECO "B48"]
[WhiteElo "2061"]
[BlackElo "2093"]
[Annotator "NA"]
[PlyCount "128"]
[EventDate "2020.01.02"]
[EventType "swiss"]
[EventCountry "AUS"]
[SourceTitle "playchess.com"]
[Source "ChessBase"]
[SourceQuality "1"]
[TimeControl "40/5400+30:1800+30"]

1. e4 {[%emt 0:00:00]} c5 {[%emt 0:00:00]} 2. Nf3 {[%emt 0:00:01]} e6 {[%emt 0:00:00]} 3. d4 {[%emt 0:00:30]} cxd4 {[%emt 0:00:30]} 4. Nxd4 {[%emt 0:00:30]} Nc6 {[%emt 0:00:30]} 5. Nc3 {[%emt 0:00:30]} Qc7 {[%emt 0:00:30]} 6. Be3 {[%emt 0:00:30]} a6 {[%emt 0:00:30]} 7. Qd2 {[%emt 0:00:30]} Nf6 {[%emt 0:00:30]} 8. O-O-O {[%emt 0:00:30]} Be7 {[%emt 0:00:30] B48: Sicilian: Taimanov: 5 Nc3 Qc7 6 Be3 a6 without Be2} 9. f3 {[%emt 0:00:30]} b5 {[%emt 0:00:30]} 10. g4 {[%emt 0:00:30]} Nxd4 {[%emt 0:00:30]} 11. Bxd4 {[%emt 0:00:30]} Bb7 {[%emt 0:00:30]} 12. g5 {[%emt 0:00:30]} Nh5 {[%emt 0:00:30]} 13. Be5 {[%emt 0:00:30]} Qxe5 {[%emt 0:00:30]} 14. Qxd7+ {[%emt 0:00:30] Double Attack} Kf8 {[%emt 0:00:30]} 15. Qxb7 {[%emt 0:00:30]} Bxg5+ {[%emt 0:00:30]} 16. Kb1 {[%emt 0:00:30] [#]} Qb8 $146 {[%emt 0:00:30]} 17. Rd7 {[%emt 0:00:30]} Qxb7 {[%emt 0:00:30]} 18. Rxb7 {[%emt 0:00:30]} Bf6 {[%emt 0:00:30]} 19. a4 {[%emt 0:00:30]} Bxc3 {[%emt 0:00:30]} 20. bxc3 {[%emt 0:00:30]} bxa4 {[%emt 0:00:30]} 21. Bxa6 {[%emt 0:00:30]} g5 {[%emt 0:00:30]} 22. Bb5 {[%emt 0:00:30]} Nf4 {[%emt 0:00:30]} 23. Rd1 {[%emt 0:00:30]} (23. c4 $11) 23... Kg7 {[%emt 0:00:30]} 24. Rdd7 {[%emt 0:00:30]} Rhf8 {[%emt 0:00:30]} 25. Ra7 {[%emt 0:00:30]} Rab8 {[%emt 0:00:30]} 26. Rdb7 {[%emt 0:00:30]} Ng6 {[%emt 0:00:30]} 27. c4 {[%emt 0:00:30]} (27. Be2 $17 {keeps fighting.}) 27... Ne5 {[%emt 0:00:30]} 28. Bxa4 {[%emt 0:00:30]} Nxc4 {[%emt 0:00:30]} 29. Bb3 {[%emt 0:00:30]} Nd2+ {[%emt 0:00:30]} 30. Kc1 {[%emt 0:00:30]} Rxb7 {[%emt 0:00:30]} 31. Rxb7 {[%emt 0:00:30]} Nxf3 {[%emt 0:00:30]} 32. Bxe6 {[%emt 0:00:30]} Nxh2 {[%emt 0:00:30]} 33. c4 {[%emt 0:00:30]} Nf3 {[%emt 0:00:30]} 34. c5 {[%emt 0:00:30]} Kf6 {[%emt 0:00:30]} ({Black should play} 34... Ne5 35. Kd2 h5) 35. Bf5 {[%emt 0:00:30]} Nd4 {[%emt 0:00:30]} 36. Bd7 {[%emt 0:00:30] [#]} (36. Bxh7 $17 Rh8 37. Bf5) 36... Ne6 $1 {[%emt 0:00:30]} 37. Rb5 {[%emt 0:00:30]} Nd4 $11 {[%emt 0:00:30]} (37... g4 $19 38. Rb1 Rg8) 38. Rb4 {[%emt 0:00:30]} Ke5 {[%emt 0:00:30]} 39. c6 {[%emt 0:00:30]} Ne6 {[%emt 0:00:30]} 40. Rb7 {[%emt 0:00:30]} Kd6 {[%emt 0:00:30]} 41. Rb5 {[%emt 0:30:30]} f6 {[%emt 0:30:30]} 42. Rd5+ {[%emt 0:00:30]} Ke7 {[%emt 0:00:30]} 43. Rf5 {[%emt 0:00:30]} Nd4 {[%emt 0:00:30]} 44. Rd5 {[%emt 0:00:30]} Nxc6 {[%emt 0:00:30]} 45. Bxc6 {[%emt 0:00:30]} Rc8 {[%emt 0:00:30]} 46. Rd7+ {[%emt 0:00:30]} Ke6 {[%emt 0:00:30]} 47. Rxh7 {[%emt 0:00:30]} Rxc6+ {[%emt 0:00:30]} 48. Kd2 {[%emt 0:00:30]} Ke5 {[%emt 0:00:30]} 49. Kd3 {[%emt 0:00:30]} Kf4 {[%emt 0:00:30]} 50. Rd7 {[%emt 0:00:30]} g4 {[%emt 0:00:30]} 51. Rd5 {[%emt 0:00:30]} Kf3 {[%emt 0:00:30]} 52. Rf5+ {[%emt 0:00:30]} Kg2 {[%emt 0:00:30]} 53. Ke3 {[%emt 0:00:30]} g3 {[%emt 0:00:30]} 54. Kf4 {[%emt 0:00:30]} Ra6 {[%emt 0:00:30]} 55. Kg4 {[%emt 0:00:30]} Ra4 {[%emt 0:00:30]} 56. Rf4 {[%emt 0:00:30]} Kh2 {[%emt 0:00:30]} 57. Rxf6 {[%emt 0:00:30]} Rxe4+ {[%emt 0:00:30]} 58. Kf3 {[%emt 0:00:30]} Rh4 {[%emt 0:00:30]} 59. Rg6 {[%emt 0:00:30]} Rh8 {[%emt 0:00:30]} 60. Rg7 {[%emt 0:00:30]} Rf8+ {[%emt 0:00:30]} 61. Ke2 {[%emt 0:00:30]} g2 {[%emt 0:00:30]} 62. Rh7+ {[%emt 0:00:30]} Kg1 {[%emt 0:00:30]} 63. Rh6 {[%emt 0:00:30]} Re8+ {[%emt 0:00:30]} 64. Kd2 {[%emt 0:00:30]} Re5 {[%emt 0:00:30]} 0-1

[Event "Australian-ch 2020"]
[Site "Kogarah"]
[Date "2020.01.05"]
[Round "4.5"]
[White "Wallis, Christopher"]
[Black "O`Chee, Kevin"]
[Result "1/2-1/2"]
[ECO "D78"]
[WhiteElo "2322"]
[BlackElo "2156"]
[Annotator "RC"]
[PlyCount "105"]
[EventDate "2020.01.02"]
[EventType "swiss"]
[EventCountry "AUS"]
[SourceTitle "playchess.com"]
[Source "ChessBase"]
[SourceQuality "1"]
[TimeControl "40/5400+30:1800+30"]

1. d4 {[%emt 0:00:00]} Nf6 {[%emt 0:00:12]} 2. c4 {[%emt 0:00:00]} g6 {[%emt 0:00:10]} 3. g3 {[%emt 0:00:00]} c6 {[%emt 0:04:52]} 4. Bg2 {[%emt 0:00:07]} d5 {[%emt 0:00:12]} 5. Qa4 {[%emt 0:00:46]} dxc4 {[%emt 0:01:25]} 6. Qxc4 {[%emt 0:00:29]} Bg7 {[%emt 0:00:16]} 7. Nf3 {[%emt 0:00:48]} O-O {[%emt 0:00:58]} 8. O-O {[%emt 0:00:13]} Nfd7 {[%emt 0:02:50]} 9. Qc2 {[%emt 0:06:26]} e5 {[%emt 0:02:17]} 10. Rd1 {[%emt 0:05:24]} Qe7 {[%emt 0:03:07]} 11. Nc3 {[%emt 0:01:36]} Na6 {[%emt 0:03:02]} 12. Bg5 {[%emt 0:07:59]} Qe8 {[%emt 0:03:31]} 13. Rac1 {[%emt 0:08:34]} Nc7 {[%emt 0:03:51]} 14. Nxe5 {[%emt 0:08:10]} Nxe5 {[%emt 0:01:49]} 15. dxe5 Bxe5 {[%emt 0:07:49]} 16. Rd8 {[%emt 0:03:27]} Qe6 {[%emt 0:02:54]} 17. Rcd1 {[%emt 0:05:20]} Bg7 {[%emt 0:08:00]} 18. Qc1 {[%emt 0:21:13]} f6 {[%emt 0:05:57]} 19. Bf4 {[%emt 0:04:43]} Qe7 {[%emt 0:05:04]} 20. Rxf8+ {[%emt 0:03:09]} Bxf8 {[%emt 0:01:15]} 21. Bd6 {[%emt 0:00:39]} Qf7 {[%emt 0:01:05]} 22. Bxf8 {[%emt 0:01:03]} Qxf8 {[%emt 0:00:43]} 23. Qf4 {[%emt 0:00:12]} Qe7 {[%emt 0:06:22]} 24. Ne4 {[%emt 0:03:26]} Bf5 {[%emt 0:05:02]} 25. Qd6 {[%emt 0:10:23]} Qxd6 {[%emt 0:02:53]} 26. Rxd6 {[%emt 0:00:53]} Bxe4 {[%emt 0:00:36]} 27. Bxe4 {[%emt 0:00:07]} Re8 {[%emt 0:01:25]} 28. Bd3 {[%emt 0:02:04]} Kf7 {[%emt 0:01:18]} 29. h4 {[%emt 0:02:30]} Ke7 {[%emt 0:01:47]} 30. Rd4 {[%emt 0:00:09]} Ne6 {[%emt 0:00:38]} 31. Ra4 {[%emt 0:00:32]} a6 {[%emt 0:00:32]} 32. Re4 {[%emt 0:01:02]} f5 {[%emt 0:00:34]} 33. Re5 {[%emt 0:00:25]} Kd6 {[%emt 0:01:13]} 34. f4 {[%emt 0:00:12]} Re7 {[%emt 0:00:44]} 35. b4 {[%emt 0:01:40]} Nc7 {[%emt 0:01:32]} 36. Rxe7 {[%emt 0:00:28]} Kxe7 {[%emt 0:00:09]} 37. Bc4 {[%emt 0:00:55]} Nd5 {[%emt 0:00:28]} 38. Bxd5 {[%emt 0:02:12]} cxd5 {[%emt 0:00:09]} 39. Kf2 {[%emt 0:00:15]} d4 {[%emt 0:04:39]} 40. e3 {[%emt 0:00:22]} Kd6 {[%emt 0:00:21]} 41. exd4 {[%emt 0:31:37]} Kd5 {[%emt 0:30:13]} 42. Ke3 {[%emt 0:00:16]} Kc4 {[%emt 0:00:34]} 43. a3 {[%emt 0:00:00]} b5 {[%emt 0:00:00]} 44. g4 {[%emt 0:00:00]} fxg4 {[%emt 0:00:00]} 45. h5 {[%emt 0:00:00]} g3 {[%emt 0:00:00]} 46. hxg6 {[%emt 0:02:30]} hxg6 {[%emt 0:00:00]} 47. Kf3 {[%emt 0:00:25]} Kxd4 {[%emt 0:00:00]} 48. Kxg3 {[%emt 0:00:07]} Ke3 {[%emt 0:00:00]} 49. Kg4 {[%emt 0:00:12]} Kf2 {[%emt 0:00:00]} 50. Kh4 {[%emt 0:00:45]} Ke3 {[%emt 0:00:00]} 51. Kg3 {[%emt 0:00:19]} Ke4 {[%emt 0:00:00]} 52. Kg4 {[%emt 0:00:03]} Ke3 {[%emt 0:00:00]} 53. Kg3 {[%emt 0:00:16]} 1/2-1/2